bitfinex/quotes_ETHUSD_20250711
["timestamp","ask_amount","ask_price","bid_price","bid_amount"]
[1752199038783,0.70759456,2953.6,2953.4,10.0]
[1752199039226,0.27619456,2953.6,2953.4,10.0]
[1752199039513,0.4314,2953.5,2952.9,17.95514836]
[1752199040452,0.4314,2953.5,2952.9,23.23114836]
[1752199040616,0.4314,2953.5,2952.9,17.95514836]
[1752199040823,0.8168,2953.4,2952.9,10.0]
[1752199041034,0.4629,2953.3,2952.9,10.0]
[1752199041232,0.4629,2953.2,2952.6,15.4482]
[1752199041832,0.4629,2953.2,2952.7,0.0338673]
[1752199042061,0.8168,2953.4,2952.9,7.95514836]
[1752199042360,5.273,2953.4,2953.0,10.0]
[1752199042565,0.4629,2953.3,2953.0,10.0]
[1752199042850,5.273,2953.4,2952.9,7.95514836]
[1752199043020,5.273,2953.4,2953.0,10.03386386]
[1752199043217,5.273,2953.4,2953.0,10.0]
[1752199043422,6.31339456,2953.6,2953.0,10.0]
[1752199044154,0.27619456,2953.6,2953.4,10.0]
[1752199044854,0.4629,2953.5,2952.8,10.0]
[1752199045041,0.55,2953.3,2952.6,0.001]
[1752199045240,0.55,2953.1,2952.6,0.001]
[1752199045634,0.4629,2953.0,2952.6,0.001]
[1752199046055,0.4629,2952.9,2952.6,0.001]
[1752199046432,0.4629,2952.8,2952.6,0.001]
[1752199047554,0.4629,2952.7,2952.6,0.001]
[1752199047951,0.1688,2952.9,2952.6,0.001]
[1752199048125,0.4629,2953.0,2952.6,0.1698]
[1752199048325,5.7359,2953.0,2952.8,10.0]
[1752199048555,6.2264,2953.2,2952.8,10.0]
[1752199048955,5.269,2953.4,2952.9,0.03386501]
[1752199049157,0.4629,2953.3,2953.0,0.1688]
[1752199049360,0.4629,2953.2,2953.0,0.1688]
[1752199049570,5.269,2953.4,2953.0,0.1688]
[1752199049853,0.4629,2953.1,2953.0,0.1688]
[1752199053570,1.2858,2953.1,2953.0,0.1688]
[1752199053856,1.2858,2953.1,2952.6,0.001]
[1752199053857,0.1688,2953.0,2952.6,0.001]
[1752199054154,0.1688,2952.9,2952.6,0.001]
[1752199054558,0.4629,2952.8,2952.6,0.001]
[1752199054929,0.4629,2952.7,2952.6,0.001]
[1752199057360,1.2565,2952.7,2952.6,0.001]
[1752199057567,1.92543,2952.7,2952.6,0.001]
[1752199059264,2.47543,2952.7,2952.6,0.001]
[1752199059561,7.73543,2952.7,2952.6,0.001]
[1752199061550,2.47543,2952.7,2952.6,0.001]
[1752199061770,7.0635,2952.7,2952.6,0.001]
[1752199063173,7.0615,2952.7,2952.6,0.001]
[1752199064465,7.4715,2952.7,2952.6,0.001]
[1752199065252,2.2165,2952.7,2952.6,0.001]
[1752199065452,7.4725,2952.7,2952.6,0.001]
[1752199065793,7.4725,2952.7,2952.5,0.001]
[1752199065794,4.91654549,2952.6,2952.5,0.001]
[1752199065965,13.50344549,2952.6,2952.5,0.001]
[1752199066395,18.76144549,2952.6,2952.5,0.001]
[1752199066755,0.55,2952.2,2951.9,0.001]
[1752199066976,1.3814,2952.0,2951.9,0.001]
[1752199067176,4.76893387,2952.0,2951.9,0.001]
[1752199067383,1.8443,2952.0,2951.9,0.001]
[1752199067689,5.23183387,2952.0,2951.9,0.001]
[1752199068772,1.8443,2952.0,2951.9,0.001]
[1752199068978,3.31238133,2952.0,2951.9,0.001]
[1752199069457,6.6999152,2952.0,2951.9,0.001]
[1752199071367,3.31238133,2952.0,2951.9,0.001]
[1752199071694,7.0983,2952.0,2951.9,0.001]
[1752199073681,7.0973,2952.0,2951.9,0.001]
[1752199074263,7.0963,2952.0,2951.9,0.001]
[1752199075193,1.8443,2952.0,2951.9,0.001]
[1752199075491,7.0953,2952.0,2951.9,0.001]
[1752199075695,7.88520215,2952.0,2951.9,0.001]
[1752199076104,7.42030215,2952.0,2951.9,0.001]
[1752199076305,5.799,2952.0,2951.9,0.001]
[1752199076788,6.257,2952.0,2951.9,0.001]
[1752199077000,0.8213,2952.2,2951.9,0.001]
[1752199077165,0.1688,2952.0,2951.9,0.001]
[1752199077504,5.4188,2952.0,2951.9,0.001]
[1752199077675,5.4178,2952.0,2951.9,0.001]
[1752199078894,5.4168,2952.0,2951.9,0.001]
[1752199079195,5.8748,2952.0,2951.9,0.001]
[1752199079999,6.50328,2952.0,2951.9,0.001]
[1752199080209,7.33428,2952.0,2951.9,0.001]
[1752199081299,2.08628,2952.0,2951.9,0.001]
[1752199081468,5.4148,2952.0,2951.9,0.001]
[1752199081672,5.4158,2952.0,2951.9,0.001]
[1752199082997,5.8738,2952.0,2951.9,0.001]
[1752199083300,0.1688,2952.0,2951.9,0.001]
[1752199083507,5.4138,2952.0,2951.9,0.001]
[1752199086806,5.8718,2952.0,2951.9,0.001]
[1752199087089,0.6268,2952.0,2951.9,0.001]
[1752199087289,5.4098,2952.0,2951.9,0.001]
[1752199088321,0.1688,2952.0,2951.9,0.001]
[1752199088474,5.4088,2952.0,2951.9,0.001]
[1752199088900,5.8668,2952.0,2951.9,0.001]
[1752199089310,5.4078,2952.0,2951.9,0.001]
[1752199090308,5.4058,2952.0,2951.9,0.001]
[1752199091313,5.4048,2952.0,2951.9,0.001]
[1752199092119,6.49008,2952.0,2951.9,0.001]
[1752199093408,1.25408,2952.0,2951.9,0.001]
[1752199093583,5.8608,2952.0,2951.9,0.001]
[1752199094205,1.0368,2952.0,2951.9,0.001]
[1752199094485,6.2688,2952.0,2951.9,0.001]
[1752199097116,0.5788,2952.0,2951.9,0.001]
[1752199097327,5.8078,2952.0,2951.9,0.001]
[1752199097524,0.5788,2952.0,2951.9,0.001]
[1752199097824,5.8058,2952.0,2951.9,0.001]
[1752199098590,5.8048,2952.0,2951.9,0.001]
[1752199104241,6.86048,2952.0,2951.9,0.001]
[1752199104544,7.69168,2952.0,2951.9,0.001]
[1752199106837,6.2368,2952.0,2951.9,0.001]
[1752199108012,6.2288,2952.0,2951.9,0.001]
[1752199108910,1.0108,2952.0,2951.9,0.001]
[1752199109223,6.2288,2952.0,2951.9,0.001]
[1752199109442,1.0108,2952.0,2951.9,0.001]
[1752199109946,6.2278,2952.0,2951.9,0.001]
[1752199110135,6.92987,2952.0,2951.9,0.001]
[1752199114252,0.002,2952.5,2951.9,15.6950966]
[1752199114411,0.002,2952.5,2952.4,15.4585966]
[1752199115282,0.002,2952.5,2952.4,10.0]
[1752199115670,0.002,2952.5,2952.4,15.2843966]
[1752199116187,5.22,2952.5,2952.4,15.2843966]
[1752199117053,5.652,2952.5,2952.4,10.0]
[1752199117254,6.2172,2952.5,2952.4,10.0]
[1752199118281,6.2172,2952.5,2951.9,5.4595966]
[1752199118581,6.2172,2952.5,2952.0,10.0]
[1752199118879,0.432,2952.4,2952.0,10.0]
[1752199119084,0.002,2952.5,2952.2,5.2843966]
[1752199119288,5.219,2952.3,2952.2,15.2843966]
[1752199119458,0.002,2952.5,2952.4,0.1742]
[1752199119959,5.222,2953.0,2952.5,10.0]
[1752199120165,5.224,2953.1,2953.0,10.0]
[1752199120465,0.002,2953.1,2953.0,10.4097]
[1752199120872,0.002,2953.1,2953.0,8.3265364]
[1752199121077,0.002,2953.1,2953.0,18.3265364]
[1752199122191,0.002,2953.1,2953.0,18.0910364]
[1752199122784,0.002,2953.1,2953.0,10.1742]
[1752199123161,0.002,2953.1,2953.0,18.3265364]
[1752199124356,0.002,2953.1,2953.0,18.4953364]
[1752199124750,0.002,2953.1,2953.0,18.2598364]
[1752199125178,0.002,2953.1,2953.0,0.1688]
[1752199126181,0.002,2953.1,2953.0,8.0856364]
[1752199126690,0.002,2953.1,2953.0,0.1688]
[1752199126890,0.002,2953.1,2952.8,10.1688]
[1752199127393,0.002,2953.1,2952.8,0.1688]
[1752199129077,0.002,2953.1,2952.8,0.20266616]
[1752199129784,0.002,2953.1,2953.0,8.0910364]
[1752199129974,0.27619456,2953.6,2953.0,18.2598364]
[1752199130178,0.27619456,2953.6,2953.5,10.0]
[1752199131495,0.27619456,2953.6,2953.5,10.343]
[1752199134487,0.002,2953.7,2953.6,0.44355698]
[1752199134665,0.04,2953.9,2953.7,10.1742]
[1752199134868,0.04,2953.9,2953.8,23.3070364]
[1752199135111,0.04,2953.9,2953.8,23.7113364]
[1752199135322,0.002,2954.0,2953.9,10.0]
[1752199135483,0.002,2954.0,2953.9,10.1742]
[1752199135684,0.002,2954.0,2953.9,10.4097]
[1752199136186,0.002,2954.1,2953.9,13.79505495]
[1752199136386,0.04,2954.9,2954.3,10.1742]
[1752199136572,0.04,2954.9,2954.8,18.0910364]
[1752199136898,0.04,2954.9,2954.8,18.2598364]
[1752199137298,0.04,2954.9,2954.8,18.92928994]
[1752199137465,0.4903,2955.9,2954.9,10.0]
[1752199137671,0.4903,2955.9,2954.8,8.4953364]
[1752199137672,0.6591,2955.9,2955.3,10.0]
[1752199137970,0.6591,2955.9,2955.4,0.1688]
[1752199138290,1.2589,2955.8,2955.3,10.0]
[1752199138497,0.6191,2955.7,2955.3,9.96555]
[1752199138786,0.4503,2955.6,2955.3,9.96555]
[1752199138986,0.4503,2955.5,2955.3,9.96555]
[1752199139609,0.4503,2955.4,2955.0,0.1688]
[1752199139984,0.1688,2955.5,2955.0,0.1688]
[1752199139985,0.4503,2955.3,2955.0,0.1688]
[1752199140200,0.4503,2955.2,2955.1,0.30979097]
[1752199141705,0.1688,2955.3,2955.1,0.30982606]
[1752199141904,0.55,2955.7,2955.2,0.30982606]
[1752199142123,0.79999,2955.6,2955.3,0.30982606]
[1752199142317,0.4503,2955.5,2955.4,0.30982606]
[1752199144495,1.0003,2955.5,2955.4,0.30982606]
[1752199147299,6.2193,2955.5,2955.4,0.30982606]
[1752199147802,6.2173,2955.5,2955.4,0.30982606]
[1752199148114,6.873999,2955.5,2955.4,0.30982606]
[1752199148698,1.656999,2955.5,2955.4,0.30982606]
[1752199148897,6.2193,2955.5,2955.4,0.30982606]
[1752199150036,0.55,2955.4,2954.9,0.1688]
[1752199150225,1.3923,2955.3,2955.0,0.31058461]
[1752199150424,0.4503,2955.2,2955.1,0.31058461]
[1752199152412,1.0003,2955.2,2955.1,0.31058461]
[1752199152623,1.65953,2955.2,2955.1,0.31058461]
[1752199152944,6.87753,2955.2,2955.1,0.31058461]
[1752199153353,0.55,2955.0,2954.7,5.27329963]
[1752199153650,0.6191,2954.9,2954.7,5.27329963]
[1752199153809,5.6683,2954.8,2954.7,5.27329963]
[1752199155112,5.6683,2954.8,2954.3,10.1688]
[1752199155113,6.30701,2954.8,2954.3,5.44209963]
[1752199155318,0.55,2954.6,2954.3,0.1688]
[1752199155514,0.4503,2954.5,2954.2,10.0]
[1752199155749,0.7188,2954.6,2954.4,5.27329963]
[1752199155953,5.215,2954.5,2954.4,5.27329963]
[1752199157219,5.6653,2954.5,2954.4,10.0]
[1752199157521,5.215,2954.5,2954.4,10.0]
[1752199158456,0.55,2954.4,2953.3,0.1742]
[1752199158635,1.0003,2954.4,2953.7,5.27329963]
[1752199158823,0.4503,2954.3,2954.1,10.0]
[1752199159148,5.6633,2954.2,2954.0,5.27329963]
[1752199159450,5.6633,2954.2,2954.1,10.0]
[1752199163438,5.6633,2954.2,2953.5,5.27329963]
[1752199163439,0.55,2954.1,2953.5,5.27329963]
[1752199163640,0.55,2953.9,2953.6,10.0]
[1752199163920,5.6721,2953.8,2953.6,10.0]
[1752199164625,0.4591,2953.7,2953.6,10.0]
[1752199164946,1.0091,2953.7,2953.6,10.0]
[1752199165150,1.0091,2953.7,2953.5,5.27329963]
[1752199165359,0.4591,2953.6,2953.5,5.27329963]
[1752199165672,0.4591,2953.6,2953.5,15.27329963]
[1752199166151,0.55,2953.7,2953.6,10.0]
[1752199166334,0.55,2953.7,2953.5,5.27329963]
[1752199166535,1.0091,2953.7,2953.5,5.27329963]
[1752199166853,0.69982,2954.1,2953.5,5.27329963]
[1752199167058,0.55,2954.1,2954.0,5.27329963]
[1752199167260,6.2221,2954.1,2954.0,5.27329963]
[1752199168759,6.2221,2954.1,2953.4,10.0]
[1752199168760,6.2221,2954.1,2953.7,5.27329963]
[1752199168958,0.55,2953.9,2953.7,5.27329963]
[1752199169135,0.55,2953.5,2953.2,0.001]
[1752199169455,5.213,2953.4,2953.2,0.001]
[1752199169656,5.6721,2953.4,2953.2,0.001]
[1752199170735,1.0091,2953.3,2953.2,0.001]
[1752199171156,1.8057,2953.3,2953.2,0.001]
[1752199171461,2.50757,2953.3,2953.2,0.001]
[1752199171662,5.89361273,2953.3,2953.2,0.001]
[1752199171878,2.50757,2953.3,2953.2,0.001]
[1752199174541,7.0197,2953.3,2953.2,0.001]
[1752199174775,0.41,2953.8,2953.2,5.27429963]
[1752199174978,5.6731,2953.7,2953.3,10.0]
[1752199175265,0.4591,2953.6,2953.3,10.0]
[1752199175578,5.6731,2953.5,2953.2,0.001]
[1752199175740,0.55,2953.3,2953.2,0.001]
[1752199176255,1.0091,2953.3,2953.2,0.001]
[1752199177272,0.7733,2953.9,2953.2,0.001]
[1752199177273,0.002,2955.3,2953.6,12.033]
[1752199177480,0.002,2955.3,2955.2,15.27329963]
[1752199178073,0.4611,2955.3,2954.8,5.27329963]
[1752199178241,5.253,2955.2,2954.8,5.27329963]
[1752199178589,0.4591,2955.1,2954.8,5.27329963]
[1752199179074,5.7101,2955.0,2954.0,0.1742]
[1752199179282,0.1688,2954.7,2954.3,10.0]
[1752199179577,5.252,2954.6,2954.3,10.0]
[1752199179938,5.252,2954.6,2954.5,15.27329963]
[1752199180860,0.1688,2954.7,2954.5,10.0]
[1752199181048,5.249,2955.0,2954.5,10.0]
[1752199181850,5.249,2955.0,2954.5,10.2355]
[1752199182562,5.251,2955.0,2954.5,10.2355]
[1752199183850,0.4591,2954.9,2954.1,15.251]
[1752199184050,0.55,2955.5,2954.3,7.91186802]
[1752199184255,0.55,2955.1,2954.4,10.0]
[1752199187064,0.55,2954.9,2954.1,0.2355]
[1752199187276,0.55,2954.9,2954.1,5.4825]
[1752199187690,0.55,2954.9,2954.1,5.246]
[1752199187691,1.1779,2954.8,2954.1,5.246]
[1752199187984,1.1779,2954.8,2954.0,10.1742]
[1752199188199,1.1779,2954.8,2954.0,0.1742]
[1752199188200,0.55,2954.6,2954.0,0.1742]
[1752199188487,5.4148,2954.5,2954.0,0.1742]
[1752199189389,5.4148,2954.5,2954.0,10.1742]
[1752199191405,5.247,2955.0,2954.3,7.91186802]
[1752199191605,5.247,2955.0,2954.4,10.0]
[1752199192402,1.3807,2954.9,2954.2,10.0]
[1752199194179,1.3807,2954.9,2954.1,7.91186802]
[1752199194180,1.3807,2954.9,2954.0,0.4097]
[1752199194380,0.55,2954.7,2953.5,1.015306]
[1752199194689,0.55,2954.7,2953.3,0.1742]
[1752199194690,0.55,2954.5,2953.3,8.08606802]
[1752199194884,5.7099,2954.4,2953.3,8.08606802]
[1752199195077,0.55,2954.2,2953.3,8.08606802]
[1752199195279,0.55,2954.0,2953.4,0.03385928]
[1752199195480,0.55,2954.0,2953.4,10.03385928]
[1752199195777,0.55,2954.0,2953.4,10.0]
[1752199195988,0.55,2954.0,2953.3,8.32156802]
[1752199196385,0.55,2954.0,2953.3,8.08606802]
[1752199196590,0.55,2953.8,2953.2,0.001]
[1752199196975,0.4569,2953.7,2953.2,0.001]
[1752199197182,0.55,2953.8,2953.2,0.001]
[1752199197505,0.55,2953.8,2953.0,10.0]
[1752199197506,0.55,2953.8,2953.0,9.99822458]
[1752199198203,0.55,2953.8,2952.9,8.32156802]
[1752199199499,0.55,2953.8,2953.0,10.0]
[1752199201203,0.4569,2953.7,2953.0,10.0]
[1752199201931,0.55,2953.6,2953.0,10.0]
[1752199203237,0.55,2953.6,2953.0,10.001]
[1752199204310,0.55,2953.4,2953.0,0.001]
[1752199204516,0.55,2953.2,2953.0,0.001]
[1752199205049,1.0069,2953.1,2953.0,0.001]
[1752199206102,1.8392,2953.1,2953.0,0.001]
[1752199208158,0.17705,2953.3,2953.0,0.001]
[1752199208371,0.7542,2954.8,2953.3,10.0]
[1752199208653,5.8039,2954.7,2953.4,0.2355]
[1752199208860,0.4569,2954.6,2953.4,10.2355]
[1752199209325,0.4569,2954.6,2953.4,10.0]
[1752199209749,5.348,2954.5,2953.8,10.0]
[1752199209944,0.58049,2954.4,2953.8,10.0]
[1752199210142,0.4569,2954.6,2953.8,10.0]
[1752199210343,5.346,2954.5,2953.8,10.0]
[1752199210827,0.4569,2954.6,2953.8,10.0]
[1752199211028,5.345,2954.5,2953.8,10.0]
[1752199211258,5.894,2954.4,2953.8,10.0]
[1752199211861,6.52909,2954.4,2953.8,10.0]
[1752199212236,6.52909,2954.4,2953.3,7.91186802]
[1752199212438,0.7542,2954.1,2953.4,10.0]
[1752199212769,0.55,2954.0,2953.4,10.0]
[1752199212968,1.23801,2954.0,2953.1,0.1742]
[1752199214444,1.23801,2954.0,2953.0,10.001]
[1752199214639,0.55,2953.8,2953.0,10.001]
[1752199214839,5.891,2953.8,2953.0,10.001]
[1752199215475,0.4569,2953.7,2953.0,10.001]
[1752199215652,1.18479,2953.6,2953.0,10.001]
[1752199216352,0.55,2953.7,2953.0,10.001]
[1752199218391,0.55,2953.5,2953.0,10.001]
[1752199218560,1.0069,2953.5,2953.0,0.001]
[1752199219755,0.4569,2953.4,2953.0,0.001]
[1752199220081,0.64036,2953.4,2953.0,0.001]
[1752199221290,0.64036,2953.4,2953.0,10.001]
[1752199221956,0.18346,2953.4,2953.0,10.001]
[1752199222759,5.323,2953.3,2953.0,10.001]
[1752199222954,5.321,2953.3,2953.0,10.001]
[1752199223149,0.55,2953.5,2953.0,10.001]
[1752199223381,5.321,2953.4,2953.0,10.2365]
[1752199223591,0.8277,2953.6,2953.0,10.2365]
[1752199223755,5.322,2953.5,2953.0,10.2365]
[1752199225990,5.322,2953.5,2953.0,10.001]
[1752199226162,5.322,2953.5,2953.0,0.001]
[1752199226163,0.4358,2953.4,2953.0,0.001]
[1752199226362,0.55,2953.3,2953.0,0.001]
[1752199226769,0.4358,2953.2,2953.0,0.001]
[1752199226972,1.7274,2953.1,2953.0,0.001]
[1752199227821,1.1774,2953.1,2953.0,0.001]
[1752199228085,6.4964,2953.1,2953.0,0.001]
[1752199229080,0.41,2953.1,2953.0,0.001]
[1752199229392,5.729,2953.1,2953.0,0.001]
[1752199230160,5.319,2953.1,2953.0,0.001]
[1752199230783,0.55,2953.3,2953.0,0.001]
[1752199230954,0.9858,2953.3,2953.0,0.001]
[1752199231151,5.7518,2953.2,2953.0,0.001]
[1752199231673,0.9858,2953.1,2953.0,0.001]
[1752199231873,5.864,2953.1,2953.0,0.001]
[1752199232468,5.312,2953.1,2953.0,0.001]
[1752199232679,5.313,2953.1,2953.0,0.001]
[1752199233488,5.314,2953.1,2953.0,0.001]
[1752199233885,0.002,2953.7,2953.0,0.2365]
[1752199234076,0.002,2953.7,2953.5,10.0]
[1752199234484,5.315,2953.7,2953.5,10.0]
[1752199235501,5.315,2953.7,2953.0,0.61143223]
[1752199235502,5.7508,2953.7,2953.1,10.0]
[1752199235868,6.40154,2953.7,2953.1,10.0]
[1752199236609,0.9858,2953.6,2953.0,0.001]
[1752199237093,0.4358,2953.5,2953.0,0.001]
[1752199237472,0.55,2953.3,2953.0,0.001]
[1752199237811,5.314,2953.2,2953.0,0.001]
[1752199240511,5.7498,2953.2,2953.0,0.001]
[1752199240713,0.4358,2953.1,2953.0,0.001]
[1752199245340,1.1666,2953.3,2953.0,0.001]
[1752199245341,0.41,2953.3,2953.0,0.001]
[1752199245690,5.301,2953.2,2953.0,0.001]
[1752199246089,5.7368,2953.2,2953.0,0.001]
[1752199247215,0.4358,2953.1,2953.0,0.001]
[1752199248604,1.05068,2953.1,2953.0,0.001]
[1752199248809,5.295,2953.1,2953.0,0.001]
[1752199253146,0.552,2953.2,2953.0,0.001]
[1752199253452,0.552,2953.2,2953.1,10.0]
[1752199253453,0.002,2953.2,2953.1,10.0]
[1752199253745,5.289,2953.2,2953.1,10.0]
[1752199256125,0.002,2953.2,2953.1,10.4097]
[1752199256648,0.002,2953.7,2953.2,0.68224551]
[1752199256808,0.002,2953.7,2953.5,10.0]
[1752199257546,5.063e-05,2953.7,2953.5,10.0]
[1752199257717,5.28805063,2953.7,2953.5,10.0]
[1752199258047,5.063e-05,2953.7,2953.5,10.0]
[1752199260952,0.04,2955.9,2955.3,2.033]
[1752199261245,0.002,2956.5,2955.9,10.0]
[1752199261453,0.002,2956.5,2956.2,17.91186802]
[1752199261761,0.002,2956.5,2956.2,11.24855252]
[1752199261912,0.002,2956.5,2956.2,20.824]
[1752199262111,0.002,2956.5,2956.2,21.03492272]
[1752199262339,0.72825569,2958.2,2956.2,11.26442272]
[1752199262340,0.453,2957.5,2956.2,11.26442272]
[1752199262547,0.31619456,2957.9,2957.3,10.0]
[1752199262847,0.31619456,2957.9,2957.8,13.3808912]
[1752199263149,0.31619456,2957.9,2957.8,30.36197541]
[1752199263323,0.26619456,2957.9,2957.8,29.83231139]
[1752199263653,0.26619456,2957.9,2957.8,29.28818955]
[1752199264038,0.26619456,2957.9,2957.8,18.39718955]
[1752199264236,0.26619456,2957.9,2957.8,10.31112153]
[1752199264439,0.26619456,2957.9,2957.8,10.54062153]
[1752199264674,0.04,2958.9,2958.1,10.0]
[1752199264952,0.04,2958.9,2958.8,15.96301957]
[1752199265112,0.04,2958.9,2958.8,16.2741411]
[1752199265315,0.04,2958.9,2958.8,10.31112153]
[1752199265543,0.493,2958.9,2958.8,10.31112153]
[1752199265742,1.8694,2958.9,2958.8,0.31112153]
[1752199265935,2.39428301,2958.9,2958.8,0.31112153]
[1752199266133,1.8694,2958.9,2958.8,0.31112153]
[1752199266333,0.55,2958.8,2958.3,0.31112153]
[1752199266535,0.55,2958.6,2958.2,0.10046499]
[1752199266741,0.453,2958.5,2958.2,0.10046499]
[1752199266935,0.453,2958.5,2957.8,0.03380891]
[1752199267254,1.1016,2958.5,2957.8,0.03380891]
[1752199267468,0.55,2958.4,2957.8,0.03380891]
[1752199267626,0.55,2958.4,2957.2,11.44801957]
[1752199267949,0.55,2958.2,2957.2,5.96301957]
[1752199268127,0.55,2958.2,2957.3,0.03381462]
[1752199268328,0.453,2958.1,2957.2,5.96301957]
[1752199268652,5.484,2958.0,2957.2,6.21801535]
[1752199268948,0.67661,2957.9,2957.2,6.21801535]
[1752199269521,0.6486,2958.5,2957.2,6.21801535]
[1752199269522,1.1016,2958.5,2957.7,5.96301957]
[1752199269722,5.483,2958.5,2957.8,0.03380891]
[1752199270145,5.483,2958.5,2957.8,10.03380891]
[1752199270357,5.483,2958.5,2957.8,10.0]
[1752199270546,5.483,2958.5,2957.9,0.03380776]
[1752199270971,5.482,2958.4,2957.9,5.99682733]
[1752199271264,5.482,2958.4,2958.0,10.0]
[1752199271476,5.482,2958.4,2958.1,0.03380548]
[1752199271620,5.484,2958.6,2958.1,0.03380548]
[1752199272370,5.484,2958.6,2958.0,10.0]
[1752199272519,5.483,2958.7,2958.0,10.0]
[1752199272889,6.0808,2958.7,2958.0,10.0]
[1752199273058,0.453,2958.6,2957.8,0.1742]
[1752199273368,5.483,2958.6,2957.8,0.1742]
[1752199273738,0.453,2958.5,2957.8,0.1742]
[1752199273941,1.10638,2958.5,2957.9,0.03380776]
[1752199274247,0.453,2958.5,2957.9,0.03380776]
[1752199274557,5.483,2958.6,2957.9,0.03380776]
[1752199275229,5.483,2958.6,2958.0,5.96301957]
[1752199276130,5.483,2958.6,2958.1,10.0]
[1752199276327,0.453,2958.5,2958.1,10.0]
[1752199276860,0.453,2958.4,2958.1,10.0]
[1752199278363,0.5936,2958.5,2958.1,10.0]
[1752199278751,1.0466,2958.5,2958.1,10.0]
[1752199278947,1.0466,2958.5,2958.0,5.96301957]
[1752199278948,0.453,2958.4,2957.6,5.96301957]
[1752199279263,1.10596,2958.4,2957.7,10.0]
[1752199279457,0.751,2958.3,2957.4,10.1742]
[1752199279835,0.453,2958.2,2957.4,10.1742]
[1752199280227,5.483,2958.6,2957.9,10.0]
[1752199280228,0.55,2958.5,2957.9,10.0]
[1752199280460,1.3524,2958.5,2957.9,10.0]
[1752199280652,0.55,2958.3,2957.4,5.96301957]
[1752199280828,0.467,2958.2,2957.2,0.25499578]
[1752199281029,0.467,2958.2,2957.0,6.13721957]
[1752199281436,0.467,2958.2,2957.1,10.0]
[1752199281642,5.474,2958.1,2957.2,0.03381577]
[1752199281840,5.474,2958.0,2957.6,10.0]
[1752199282153,0.55,2958.4,2957.7,0.03381005]
[1752199282351,5.473,2958.3,2957.7,0.03381005]
[1752199283264,5.473,2958.3,2957.8,0.30763624]
[1752199283464,5.469,2958.2,2957.9,0.30763624]
[1752199283770,5.469,2958.2,2958.0,0.30763624]
[1752199284062,5.469,2958.2,2958.1,0.30763624]
[1752199284264,5.935,2958.2,2958.1,0.30763624]
[1752199285265,7.1745,2958.2,2958.1,0.30763624]
[1752199287156,1.7065,2958.2,2958.1,0.30763624]
[1752199287354,6.476,2958.2,2958.1,0.30763624]
[1752199287750,7.2769,2958.2,2958.1,0.30763624]
[1752199288033,10.65733404,2958.2,2958.1,0.30763624]
[1752199288362,7.2779,2958.2,2958.1,0.30763624]
[1752199288565,11.06833404,2958.2,2958.1,0.30763624]
[1752199288868,11.06833404,2958.2,2956.7,7.9940428]
[1752199288869,0.8182,2957.7,2956.7,0.10051595]
[1752199289033,0.55,2957.5,2956.7,0.10051595]
[1752199289661,0.55,2957.3,2956.7,0.10051595]
[1752199289862,5.926,2957.2,2956.7,0.10051595]
[1752199290068,0.467,2957.1,2956.7,0.10051595]
[1752199290235,5.459,2957.2,2956.7,0.10051595]
[1752199290236,0.467,2957.0,2956.7,0.10051595]
[1752199290439,0.467,2956.9,2956.7,0.10051595]
[1752199290643,5.458,2956.8,2956.7,0.10051595]
[1752199291057,5.925,2956.8,2956.7,0.10051595]
[1752199291354,7.8999,2956.8,2956.7,0.10051595]
[1752199291564,7.8999,2956.8,2955.9,7.89352685]
[1752199291760,0.467,2956.7,2955.9,7.89352685]
[1752199291975,0.467,2956.7,2956.0,0.25767072]
[1752199292158,0.55,2956.6,2955.8,7.89352685]
[1752199292553,0.467,2956.5,2955.9,10.0]
[1752199292758,5.452,2956.4,2955.9,10.24978879]
[1752199292959,5.919,2956.4,2955.9,10.24978879]
[1752199293277,0.467,2956.3,2955.9,10.24978879]
[1752199293797,0.467,2956.2,2955.4,10.86668092]
[1752199293951,0.467,2956.2,2955.4,7.89352685]
[1752199294369,6.465,2956.2,2955.5,10.0]
[1752199294781,6.465,2956.2,2955.4,7.89352685]
[1752199294782,7.2629,2956.2,2955.4,7.89352685]
[1752199294967,7.2629,2956.2,2955.1,0.04]
[1752199295697,7.2629,2956.2,2955.1,10.04]
[1752199295850,10.64562106,2956.2,2955.1,0.04]
[1752199296047,7.2629,2956.2,2955.1,0.04]
[1752199296261,9.47680474,2956.2,2955.1,0.04]
[1752199296558,9.47680474,2956.2,2955.1,10.04]
[1752199296748,1.3479,2956.2,2955.9,10.0]
[1752199296948,5.447,2956.2,2955.9,10.0]
[1752199297656,5.914,2956.2,2955.7,0.4819]
[1752199297851,7.2638,2956.2,2955.3,0.4819]
[1752199299205,7.2638,2956.2,2955.1,0.04]
[1752199299206,11.05652106,2956.2,2955.1,0.04]
[1752199299372,12.52153301,2956.2,2955.1,0.04]